fUST/lending_fUST_20250417
["ID","MTS","AMOUNT","RATE_DAILY","PERIOD"]
[358204826,1744836633216,-500.0,0.00018098,2]
[358204827,1744836633226,-500.0,0.00018098,2]
[358204828,1744836633239,-623.32334479,0.00018098,2]
[358204829,1744836633249,-500.0,0.00018098,2]
[358204830,1744836633260,-500.0,0.00018098,2]
[358204831,1744836633270,-500.0,0.00018098,2]
[358204832,1744836633280,-500.0,0.00018098,2]
[358204833,1744836633290,-500.0,0.00018098,2]
[358204834,1744836633300,-500.0,0.00018098,2]
[358204835,1744836633311,-500.0,0.00018098,2]
[358204836,1744836633321,-500.0,0.00018098,2]
[358204837,1744836633331,-500.0,0.00018098,2]
[358204838,1744836633345,-500.0,0.00018098,2]
[358204839,1744836633355,-500.0,0.00018098,2]
[358204840,1744836633366,-500.0,0.00018098,2]
[358204841,1744836633376,-500.0,0.00018098,2]
[358204842,1744836633387,-500.0,0.00018098,2]
[358204843,1744836633397,-500.0,0.00018098,2]
[358204844,1744836633408,-500.0,0.00018098,2]
[358204845,1744836633418,-274.79011793,0.00018098,2]
[358204846,1744836633428,-500.0,0.00018098,2]
[358204847,1744836633438,-500.0,0.00018098,2]
[358204848,1744836633448,-500.0,0.00018098,2]
[358204849,1744836633458,-500.0,0.00018098,2]
[358204850,1744836633468,-500.0,0.00018098,2]
[358204851,1744836633477,-500.0,0.00018098,2]
[358204852,1744836633487,-371.24536896,0.00018098,2]
[358204853,1744836633497,-500.0,0.00018098,2]
[358204854,1744836633508,-500.0,0.00018098,2]
[358204855,1744836633524,-500.0,0.00018098,2]
[358204856,1744836633534,-500.0,0.00018098,2]
[358204857,1744836633545,-500.0,0.00018098,2]
[358204858,1744836633556,-500.0,0.00018098,2]
[358204859,1744836633566,-500.0,0.00018098,2]
[358204860,1744836633576,-500.0,0.00018098,2]
[358204861,1744836633587,-500.0,0.00018098,2]
[358204862,1744836633598,-3458.164777,0.00018098,2]
[358204863,1744836633609,-500.0,0.00018098,2]
[358204864,1744836633619,-3458.164777,0.00018098,2]
[358204865,1744836633629,-500.0,0.00018098,2]
[358204866,1744836633639,-3458.164777,0.00018098,2]
[358204867,1744836633648,-3458.164777,0.00018098,2]
[358204868,1744836633659,-500.0,0.00018098,2]
[358204869,1744836633668,-3458.164777,0.00018098,2]
[358204870,1744836633677,-3458.164777,0.00018098,2]
[358204871,1744836633687,-3458.164777,0.00018098,2]
[358204872,1744836633697,-3020.69682927,0.00018098,2]
[358204873,1744836633712,-437.46794773,0.00018098,2]
[358204874,1744836633722,-2914.23205227,0.00018098,2]
[358204875,1744836633734,-543.93272473,0.00018098,2]
[358204876,1744836633745,-3458.164777,0.00018098,2]
[358204877,1744836633755,-3458.164777,0.00018098,2]
[358204878,1744836633766,-3458.164777,0.00018098,2]
[358204879,1744836633777,-3458.164777,0.00018098,2]
[358204880,1744836633787,-3458.164777,0.00018098,2]
[358204881,1744836633797,-3458.164777,0.00018098,2]
[358204882,1744836633807,-3458.164777,0.00018098,2]
[358204883,1744836633817,-3458.164777,0.00018098,2]
[358204884,1744836633827,-3458.164777,0.00018098,2]
[358204885,1744836633837,-3458.164777,0.00018098,2]
[358204886,1744836633848,-3458.164777,0.00018098,2]
[358204887,1744836633859,-3458.164777,0.00018098,2]
[358204888,1744836633869,-3458.164777,0.00018098,2]
[358204889,1744836633879,-3458.164777,0.00018098,2]
[358204890,1744836633890,-3458.164777,0.00018098,2]
[358204891,1744836633900,-3458.164777,0.00018098,2]
[358204892,1744836633911,-3458.164777,0.00018098,2]
[358204893,1744836634236,-3458.164777,0.00018098,2]
[358204894,1744836634261,-3458.164777,0.00018098,2]
[358204895,1744836634271,-3458.164777,0.00018098,2]
[358204896,1744836634281,-3458.164777,0.00018098,2]
[358204897,1744836634291,-3458.164777,0.00018098,2]
[358204898,1744836634301,-499.99999999,0.00018098,2]
[358204899,1744836634310,-3458.164777,0.00018098,2]
[358204900,1744836634320,-3458.164777,0.00018098,2]
[358204901,1744836634330,-3458.164777,0.00018098,2]
[358204902,1744836634340,-3458.164777,0.00018098,2]
[358204903,1744836634349,-3458.164777,0.00018098,2]
[358204904,1744836634358,-3458.164777,0.00018098,2]
[358204905,1744836634367,-3458.164777,0.00018098,2]
[358204906,1744836634375,-3458.164777,0.00018098,2]
[358204907,1744836634384,-1420.46773645,0.00018104,2]
[358204908,1744836634393,-503.86829957,0.000182,2]
[358204909,1744836634402,-500.0,0.000182,2]
[358204910,1744836634411,-534.44279293,0.000182,2]
[358204911,1744836634420,-500.0,0.000182,2]
[358204912,1744836634429,-500.0,0.000182,2]
[358204913,1744836634439,-500.0,0.000182,2]
[358204914,1744836634449,-500.0,0.000182,2]
[358204915,1744836634459,-500.0,0.000182,2]
[358204916,1744836634469,-152.0,0.00018576,2]
[358204917,1744836634479,-1300.2545379,0.00018904,2]
[358204918,1744836634489,-192.0,0.00018994,2]
[358204919,1744836634498,-151.0,0.00019459,2]
[358204920,1744836634509,-1059.28436182,0.00019639,2]
[358204921,1744836634521,-249.5434291,0.00019719,2]
[358204922,1744836634531,-420.0,0.00019744,2]
[358204923,1744836634540,-420.0,0.00019842,2]
[358204924,1744836634551,-1059.28436182,0.00021279,2]
[358204925,1744836634560,-249.5434291,0.00021438,2]
[358204926,1744836634571,-403.0,0.00021541,2]
[358204927,1744836634580,-300.0,0.00021754,2]
[358204928,1744836634589,-1059.28436182,0.00022918,2]
[358204929,1744836634599,-249.5434291,0.00023158,2]
[358204930,1744836634609,-466.12312824,0.0002345,2]
[358204931,1744836634619,-544.0,0.00023619,2]
[358204932,1744836634628,-707.0,0.00023619,2]
[358204933,1744836634638,-2248.0,0.00023619,2]
[358204934,1744836634649,-402.0,0.00023619,2]
[358204935,1744836634660,-3002.95,0.00024,2]
[358204936,1744836634670,-872.16046061,0.00024,5]
[358204937,1744836634681,-872.16046035,0.00024,5]
[358204938,1744836634691,-872.16046035,0.00024,5]
[358204939,1744836634700,-872.16046035,0.00024,5]
[358204940,1744836634710,-872.16046035,0.00024,5]
[358204941,1744836634720,-872.16046035,0.00024,5]
[358204942,1744836634731,-872.16046035,0.00024,5]
[358204943,1744836634742,-872.16046035,0.00024,5]
[358204944,1744836634754,-872.16046035,0.00024038,5]
[358204945,1744836634764,-160.0,0.00024484,2]
[358204946,1744836634774,-160.0,0.00024491,2]
[358204947,1744836634784,-12553.36997132,0.00024491,2]
[358204948,1744836634793,-420.18615873,0.00024499,2]
[358204949,1744836634803,-160.0,0.00024499,2]
[358204950,1744836634813,-160.0,0.00024499,2]
[358204951,1744836634823,-160.0,0.00024499,2]
[358204952,1744836634832,-872.16046035,0.00024555,5]
[358204953,1744836634842,-1059.28436182,0.00024557,2]
[358204954,1744836634852,-1577.9,0.00024657,2]
[358204955,1744836634862,-1073.52,0.00024657,2]
[358204956,1744836634872,-500.0,0.00024657,2]
[358204957,1744836634883,-6396.18,0.00024657,2]
[358204958,1744836634892,-500.0,0.00024657,2]
[358204959,1744836634902,-500.0,0.00024657,2]
[358204960,1744836634911,-500.0,0.00024657,2]
[358204961,1744836634921,-639.65,0.00024657,2]
[358204962,1744836634932,-933.68,0.00024657,2]
[358204963,1744836634943,-731.77,0.00024657,2]
[358204964,1744836634952,-500.0,0.00024657,2]
[358204965,1744836634962,-500.0,0.00024657,2]
[358204966,1744836634972,-500.0,0.00024657,2]
[358204967,1744836634982,-500.0,0.00024657,2]
[358204968,1744836634991,-500.0,0.00024657,2]
[358204969,1744836635002,-500.0,0.00024657,2]
[358204970,1744836635012,-768.27,0.00024657,2]
[358204971,1744836635022,-511.01,0.00024657,2]
[358204972,1744836635036,-500.0,0.00024657,2]
[358204973,1744836635046,-1119.7,0.00024657,2]
[358204974,1744836635056,-639.23,0.00024657,2]
[358204975,1744836635067,-500.0,0.00024657,2]
[358204976,1744836635077,-452.75423156,0.00024657,2]
[358204977,1744836635087,-500.0,0.00024657,2]
[358204978,1744836635097,-500.0,0.00024657,2]
[358204979,1744836635107,-1098.97,0.00024657,2]
[358204980,1744836635119,-500.0,0.00024657,2]
[358204981,1744836635130,-702.94,0.00024657,2]
[358204982,1744836635140,-500.0,0.00024657,2]
[358204983,1744836635150,-500.0,0.00024657,2]
[358204984,1744836635160,-598.47293409,0.00024657,2]
[358204985,1744836635171,-500.0,0.00024657,2]
[358204986,1744836635181,-873.21,0.00024657,2]
[358204987,1744836635192,-500.0,0.00024657,2]
[358204988,1744836635203,-500.0,0.00024657,2]
[358204989,1744836635214,-1127.34,0.00024657,2]
[358204990,1744836635224,-500.0,0.00024657,2]
[358204991,1744836635234,-500.0,0.00024657,2]
[358204992,1744836635244,-500.0,0.00024657,2]
[358204993,1744836635254,-1113.23,0.00024657,2]
[358204994,1744836635264,-500.0,0.00024657,2]
[358204995,1744836635274,-500.0,0.00024657,2]
[358204996,1744836635285,-500.0,0.00024657,2]
[358204997,1744836635294,-679.89,0.00024657,2]
[358204998,1744836635305,-500.0,0.00024657,2]
[358204999,1744836635315,-1307.72,0.00024657,2]
[358205000,1744836635326,-238.78429681,0.00024657,2]
[358205001,1744836635338,-500.0,0.00024657,2]
[358205002,1744836635348,-1092.68,0.00024657,2]
[358205003,1744836635358,-500.0,0.00024657,2]
[358205004,1744836635368,-500.0,0.00024657,2]
[358205005,1744836635377,-500.0,0.00024657,2]
[358205006,1744836635387,-722.24,0.00024657,2]
[358205007,1744836635399,-882.73,0.00024657,2]
[358205008,1744836635408,-635.56,0.00024657,2]
[358205009,1744836635418,-537.79,0.00024657,2]
[358205010,1744836635427,-500.0,0.00024657,2]
[358205011,1744836635437,-500.0,0.00024657,2]
[358205012,1744836635447,-877.71,0.00024657,2]
[358205013,1744836635457,-500.0,0.00024657,2]
[358205014,1744836635467,-500.0,0.00024657,2]
[358205015,1744836635477,-161.98698915,0.00024657,2]
[358205016,1744836635487,-1346.79,0.00024657,2]
[358205017,1744836635498,-500.0,0.00024657,2]
[358205018,1744836635508,-1207.61,0.00024657,2]
[358205019,1744836635522,-500.0,0.00024657,2]
[358205020,1744836635532,-500.0,0.00024657,2]
[358205021,1744836635542,-500.0,0.00024657,2]
[358205022,1744836635551,-520.6,0.00024657,2]
[358205023,1744836635563,-756.73,0.00024657,2]
[358205024,1744836635573,-554.00690559,0.00024657,2]
[358205025,1744836635583,-500.0,0.00024657,2]
[358205026,1744836635593,-1023.74,0.00024657,2]
[358205027,1744836635603,-500.0,0.00024657,2]
[358205028,1744836635613,-5010.12,0.00024657,2]
[358205029,1744836635623,-500.0,0.00024657,2]
[358205030,1744836635633,-500.0,0.00024657,2]
[358205031,1744836635643,-500.0,0.00024657,2]
[358205032,1744836635653,-706.6,0.00024657,2]
[358205033,1744836635663,-583.30739675,0.00024657,2]
[358205034,1744836635673,-500.0,0.00024657,2]
[358205035,1744836635683,-1630.72,0.00024657,2]
[358205036,1744836635693,-705.37,0.00024657,2]
[358205037,1744836635703,-500.0,0.00024657,2]
[358205038,1744836635713,-500.0,0.00024657,2]
[358205039,1744836635723,-500.0,0.00024657,2]
[358205040,1744836635733,-644.99,0.00024657,2]
[358205041,1744836635743,-758.28,0.00024657,2]
[358205042,1744836635752,-602.0,0.00024657,2]
[358205043,1744836635762,-268.20024587,0.00024657,2]
[358205044,1744836635772,-500.0,0.00024657,2]
[358205045,1744836635782,-714.0,0.00024657,2]
[358205046,1744836635792,-2686.12,0.00024657,2]
[358205047,1744836635802,-718.48,0.00024657,2]
[358205048,1744836635812,-612.52,0.00024657,2]
[358205049,1744836635822,-2996.84,0.00024657,2]
[358205050,1744836635832,-500.0,0.00024657,2]
[358205051,1744836635841,-500.0,0.00024657,2]
[358205052,1744836635851,-500.0,0.00024657,2]
[358205053,1744836635861,-542.36,0.00024657,2]
[358205054,1744836635871,-500.0,0.00024657,2]
[358205055,1744836635880,-4893.91,0.00024657,2]
[358205056,1744836635890,-183.81034988,0.00024657,2]
[358205057,1744836635900,-500.0,0.00024657,2]
[358205058,1744836635910,-573.53,0.00024657,2]
[358205059,1744836635920,-500.0,0.00024657,2]
[358205060,1744836635930,-500.0,0.00024657,2]
[358205061,1744836635939,-500.0,0.00024657,2]
[358205062,1744836635949,-500.0,0.00024657,2]
[358205063,1744836635963,-500.0,0.00024657,2]
[358205064,1744836635972,-746.57,0.00024657,2]
[358205065,1744836635981,-500.0,0.00024657,2]
[358205066,1744836635989,-500.0,0.00024657,2]
[358205067,1744836635998,-980.26,0.00024657,2]
[358205068,1744836636006,-874.53,0.00024657,2]
[358205069,1744836636016,-500.0,0.00024657,2]
[358205070,1744836636026,-500.0,0.00024657,2]
[358205071,1744836636035,-608.35,0.00024657,2]
[358205072,1744836636045,-813.72,0.00024657,2]
[358205073,1744836636054,-500.0,0.00024657,2]
[358205074,1744836636064,-500.0,0.00024657,2]
[358205075,1744836636074,-1103.62,0.00024657,2]
[358205076,1744836636084,-1493.06,0.00024657,2]
[358205077,1744836636094,-1038.01,0.00024657,2]
[358205078,1744836636104,-642.83,0.00024657,2]
[358205079,1744836636113,-500.0,0.00024657,2]
[358205080,1744836636123,-720.33,0.00024657,2]
[358205081,1744836636133,-500.0,0.00024657,2]
[358205082,1744836636143,-864.69,0.00024657,2]
[358205083,1744836636152,-500.0,0.00024657,2]
[358205084,1744836636162,-589.29,0.00024657,2]
[358205085,1744836636173,-500.0,0.00024657,2]
[358205086,1744836636183,-500.0,0.00024657,2]
[358205087,1744836636193,-500.0,0.00024657,2]
[358205088,1744836636203,-638.83,0.00024657,2]
[358205089,1744836636214,-449.10325074,0.00024657,2]
[358205090,1744836636224,-500.0,0.00024657,2]
[358205091,1744836636234,-500.0,0.00024657,2]
[358205092,1744836636244,-1671.72,0.00024657,2]
[358205093,1744836636254,-500.0,0.00024657,2]
[358205094,1744836636264,-500.0,0.00024657,2]
[358205095,1744836636274,-500.0,0.00024657,2]
[358205096,1744836636283,-500.0,0.00024657,2]
[358205097,1744836636293,-500.0,0.00024657,2]
[358205098,1744836636303,-500.0,0.00024657,2]
[358205099,1744836636315,-936.9,0.00024657,2]
[358205100,1744836636325,-566.36,0.00024657,2]
[358205101,1744836636335,-500.0,0.00024657,2]
[358205102,1744836636345,-205.32641078,0.00024657,2]
[358205103,1744836636355,-773.09,0.00024657,2]
[358205104,1744836636364,-1714.74,0.00024657,2]
[358205105,1744836636374,-500.0,0.00024657,2]
[358205106,1744836636383,-500.0,0.00024657,2]
[358205107,1744836636394,-500.0,0.00024657,2]
[358205108,1744836636404,-526.1,0.00024657,2]
[358205109,1744836636414,-713.28,0.00024657,2]
[358205110,1744836636423,-500.0,0.00024657,2]
[358205111,1744836636433,-632.92,0.00024657,2]
[358205112,1744836636442,-500.0,0.00024657,2]
[358205113,1744836636454,-695.0,0.00024657,2]
[358205114,1744836636464,-1073.48,0.00024657,2]
[358205115,1744836636474,-500.0,0.00024657,2]
[358205116,1744836636483,-1174.35,0.00024657,2]
[358205117,1744836636493,-500.0,0.00024657,2]
[358205118,1744836636503,-1006.98,0.00024657,2]
[358205119,1744836636521,-500.0,0.00024657,2]
[358205120,1744836636531,-500.0,0.00024657,2]
[358205121,1744836636541,-500.0,0.00024657,2]
[358205122,1744836636550,-500.0,0.00024657,2]
[358205123,1744836636560,-500.0,0.00024657,2]
[358205124,1744836636571,-500.0,0.00024657,2]
[358205125,1744836636581,-876.81,0.00024657,2]
[358205126,1744836636590,-500.0,0.00024657,2]
[358205127,1744836636600,-181.10432266,0.00024657,2]
[358205128,1744836636609,-712.49,0.00024657,2]
[358205129,1744836636619,-500.0,0.00024657,2]
[358205130,1744836636629,-1321.12,0.00024657,2]
[358205131,1744836636638,-1291.72,0.00024657,2]
[358205132,1744836636648,-870.82,0.00024657,2]
[358205133,1744836636658,-220.43507036,0.00024657,2]
[358205134,1744836636667,-500.0,0.00024657,2]
[358205135,1744836636677,-500.0,0.00024657,2]
[358205136,1744836636686,-500.0,0.00024657,2]
[358205137,1744836636696,-500.0,0.00024657,2]
[358205138,1744836636706,-500.0,0.00024657,2]
[358205139,1744836636716,-500.0,0.00024657,2]
[358205140,1744836636726,-1370.62,0.00024657,2]
[358205141,1744836636736,-807.78,0.00024657,2]
[358205142,1744836636745,-500.0,0.00024657,2]
[358205143,1744836636755,-1275.89,0.00024657,2]
[358205144,1744836636765,-919.39,0.00024657,2]
[358205145,1744836636774,-500.0,0.00024657,2]
[358205146,1744836636784,-714.62,0.00024657,2]
[358205147,1744836636794,-500.0,0.00024657,2]
[358205148,1744836636804,-500.0,0.00024657,2]
[358205149,1744836636814,-630.91,0.00024657,2]
[358205150,1744836636823,-500.0,0.00024657,2]
[358205151,1744836636833,-503.42,0.00024657,2]
[358205152,1744836636843,-1000.0,0.00024657,14]
[358205153,1744836636852,-1394.39,0.00024657,2]
[358205154,1744836636862,-1000.0,0.00024657,14]
[358205155,1744836636871,-1000.0,0.00024657,14]
[358205156,1744836636881,-1000.0,0.00024657,14]
[358205157,1744836636891,-1000.0,0.00024657,14]
[358205158,1744836636901,-1000.0,0.00024657,14]
[358205159,1744836636911,-1000.0,0.00024657,14]
[358205160,1744836636921,-1000.0,0.00024657,14]
[358205161,1744836636930,-761.51,0.00024657,2]
[358205162,1744836636939,-1000.0,0.00024657,14]
[358205163,1744836636948,-1000.0,0.00024657,14]
[358205164,1744836636960,-1000.0,0.00024657,14]
[358205165,1744836636970,-500.0,0.00024657,2]
[358205166,1744836636979,-1000.0,0.00024657,14]
[358205167,1744836636989,-1000.0,0.00024657,14]
[358205168,1744836636999,-1000.0,0.00024657,14]
[358205169,1744836637009,-503.27,0.00024657,2]
[358205170,1744836637019,-1000.0,0.00024657,14]
[358205171,1744836637028,-1000.0,0.00024657,14]
[358205172,1744836637038,-1000.0,0.00024657,14]
[358205173,1744836637048,-1000.0,0.00024657,14]
[358205174,1744836637058,-1000.0,0.00024657,14]
[358205175,1744836637068,-500.0,0.00024657,2]
[358205176,1744836637078,-500.0,0.00024657,2]
[358205177,1744836637088,-500.0,0.00024657,2]
[358205178,1744836637097,-500.0,0.00024657,2]
[358205179,1744836637107,-500.0,0.00024657,2]
[358205180,1744836637117,-698.61,0.00024657,2]
[358205181,1744836637127,-1460.68,0.00024657,2]
[358205182,1744836637137,-500.0,0.00024657,2]
[358205183,1744836637147,-500.0,0.00024657,2]
[358205184,1744836637157,-500.0,0.00024657,2]
[358205185,1744836637166,-500.0,0.00024657,2]
[358205186,1744836637177,-500.0,0.00024657,2]
[358205187,1744836637186,-500.0,0.00024657,2]
[358205188,1744836637197,-876.81,0.00024657,2]
[358205189,1744836637210,-774.95,0.00024657,2]
[358205190,1744836637220,-500.0,0.00024657,2]
[358205191,1744836637230,-500.0,0.00024657,2]
[358205192,1744836637240,-660.91,0.00024657,2]
[358205193,1744836637249,-500.0,0.00024657,2]
[358205194,1744836637259,-360.30577071,0.00024657,2]
[358205195,1744836637269,-500.0,0.00024657,2]
[358205196,1744836637279,-500.0,0.00024657,2]
[358205197,1744836637289,-839.65,0.00024657,2]
[358205198,1744836637299,-500.0,0.00024657,2]
[358205199,1744836637309,-307.53922661,0.00024657,2]
[358205200,1744836637319,-856.7,0.00024657,2]
[358205201,1744836637328,-558.69,0.00024657,2]
[358205202,1744836637338,-500.0,0.00024657,2]
[358205203,1744836637347,-500.0,0.00024657,2]
[358205204,1744836637357,-500.0,0.00024657,2]
[358205205,1744836637367,-594.37,0.00024657,2]
[358205206,1744836637377,-500.0,0.00024657,2]
[358205207,1744836637387,-500.0,0.00024657,2]
[358205208,1744836637397,-830.13,0.00024657,2]
[358205209,1744836637407,-504.38,0.00024657,2]
[358205210,1744836637417,-500.0,0.00024657,2]
[358205211,1744836637427,-713.25,0.00024657,2]
[358205212,1744836637437,-534.8,0.00024657,2]
[358205213,1744836637447,-500.0,0.00024657,2]
[358205214,1744836637459,-500.0,0.00024657,2]
[358205215,1744836637468,-500.0,0.00024657,2]
[358205216,1744836637479,-500.0,0.00024657,2]
[358205217,1744836637491,-500.0,0.00024657,2]
[358205218,1744836637502,-931.89,0.00024657,2]
[358205219,1744836637514,-500.0,0.00024657,2]
[358205220,1744836637528,-1257.9,0.00024657,2]
[358205221,1744836637538,-1136.41,0.00024657,2]
[358205222,1744836637548,-500.0,0.00024657,2]
[358205223,1744836637559,-578.54868626,0.00024657,2]
[358205224,1744836637569,-526.01,0.00024657,2]
[358205225,1744836637579,-757.73,0.00024657,2]
[358205226,1744836637590,-500.0,0.00024657,2]
[358205227,1744836637600,-1270.65,0.00024657,2]
[358205228,1744836637610,-507.41,0.00024657,2]
[358205229,1744836637620,-859.03,0.00024657,2]
[358205230,1744836637629,-500.0,0.00024657,2]
[358205231,1744836637639,-667.56,0.00024657,2]
[358205232,1744836637648,-500.0,0.00024657,2]
[358205233,1744836637658,-500.0,0.00024657,2]
[358205234,1744836637668,-500.0,0.00024657,2]
[358205235,1744836637678,-2129.74,0.00024657,2]
[358205236,1744836637688,-500.0,0.00024657,2]
[358205237,1744836637698,-500.0,0.00024657,2]
[358205238,1744836637708,-655.85,0.00024657,2]
[358205239,1744836637718,-533.58,0.00024657,2]
[358205240,1744836637728,-2019.35,0.00024657,2]
[358205241,1744836637738,-1914.67,0.00024657,2]
[358205242,1744836637748,-1622.89,0.00024657,2]
[358205243,1744836637760,-500.0,0.00024657,2]
[358205244,1744836637769,-2206.15,0.00024657,2]
[358205245,1744836637779,-500.0,0.00024657,2]
[358205246,1744836637790,-500.0,0.00024657,2]
[358205247,1744836637799,-500.0,0.00024657,2]
[358205248,1744836637810,-500.0,0.00024657,2]
[358205249,1744836637821,-2025.02,0.00024657,2]
[358205250,1744836637832,-500.0,0.00024657,2]
[358205251,1744836637843,-500.0,0.00024657,2]
[358205252,1744836637853,-500.0,0.00024657,2]
[358205253,1744836637864,-1202.73,0.00024657,2]
[358205254,1744836637874,-500.0,0.00024657,2]
[358205255,1744836637884,-500.0,0.00024657,2]
[358205256,1744836637894,-500.0,0.00024657,2]
[358205257,1744836637904,-532.6916158,0.00024657,2]
[358205258,1744836637914,-506.33062371,0.00024657,2]
[358205259,1744836637927,-818.37,0.00024657,2]
[358205260,1744836637938,-342.37238357,0.00024657,2]
[358205261,1744836637948,-2034.88,0.00024657,2]
[358205262,1744836637959,-500.0,0.00024657,2]
[358205263,1744836637969,-500.0,0.00024657,2]
[358205264,1744836637978,-500.0,0.00024657,2]
[358205265,1744836637989,-500.0,0.00024657,2]
[358205266,1744836638000,-500.0,0.00024657,2]
[358205267,1744836638011,-500.0,0.00024657,2]
[358205268,1744836638020,-500.0,0.00024657,2]
[358205269,1744836638030,-1494.88,0.00024657,2]
[358205270,1744836638039,-545.73,0.00024657,2]
[358205271,1744836638049,-500.0,0.00024657,2]
[358205272,1744836638059,-500.0,0.00024657,2]
[358205273,1744836638068,-500.0,0.00024657,2]
[358205274,1744836638078,-500.0,0.00024657,2]
[358205275,1744836638088,-500.0,0.00024657,2]
[358205276,1744836638098,-500.0,0.00024657,2]
[358205278,1744836638107,-500.0,0.00024657,2]
[358205280,1744836638117,-500.0,0.00024657,2]
[358205281,1744836638126,-982.93,0.00024657,2]
[358205282,1744836638136,-500.0,0.00024657,2]
[358205283,1744836638147,-500.0,0.00024657,2]
[358205284,1744836638156,-500.0,0.00024657,2]
[358205285,1744836638167,-641.53860986,0.00024657,2]
[358205286,1744836638176,-480.27689363,0.00024657,2]
[358205287,1744836638208,-1905.02310637,0.00024657,2]
[358205288,1744836638218,-539.82,0.00024657,2]
[358205289,1744836638227,-500.0,0.00024657,2]
[358205290,1744836638236,-847.39,0.00024657,2]
[358205292,1744836638246,-500.0,0.00024657,2]
[358205293,1744836638255,-610.02,0.00024657,2]
[358205294,1744836638264,-500.0,0.00024657,2]
[358205295,1744836638274,-500.0,0.00024657,2]
[358205296,1744836638283,-729.8,0.00024657,2]
[358205297,1744836638292,-500.0,0.00024657,2]
[358205298,1744836638302,-500.0,0.00024657,2]
[358205299,1744836638311,-500.0,0.00024657,2]
[358205300,1744836638321,-1803.65,0.00024657,2]
[358205301,1744836638330,-500.0,0.00024657,2]
[358205302,1744836638340,-500.0,0.00024657,2]
[358205304,1744836638349,-500.0,0.00024657,2]
[358205305,1744836638359,-500.0,0.00024657,2]
[358205306,1744836638368,-500.0,0.00024657,2]
[358205307,1744836638378,-1203.52,0.00024657,2]
[358205308,1744836638387,-500.0,0.00024657,2]
[358205309,1744836638396,-1046.71,0.00024657,2]
[358205311,1744836638406,-681.97,0.00024657,2]
[358205312,1744836638416,-1780.03,0.00024657,2]
[358205313,1744836638425,-507.9,0.00024657,2]
[358205314,1744836638434,-500.0,0.00024657,2]
[358205317,1744836638641,-500.0,0.00024657,2]
[358205318,1744836638651,-500.0,0.00024657,2]
[358205319,1744836638661,-500.0,0.00024657,2]
[358205320,1744836638670,-1221.27,0.00024657,2]
[358205321,1744836638680,-599.91,0.00024657,2]
[358205322,1744836638690,-500.0,0.00024657,2]
[358205323,1744836638700,-500.0,0.00024657,2]
[358205324,1744836638710,-500.0,0.00024657,2]
[358205325,1744836638719,-500.0,0.00024657,2]
[358205326,1744836638729,-500.0,0.00024657,2]
[358205327,1744836638739,-703.45,0.00024657,2]
[358205328,1744836638748,-895.22,0.00024657,2]
[358205329,1744836638758,-1054.64,0.00024657,2]
[358205330,1744836638768,-503.13,0.00024657,2]
[358205331,1744836638778,-1488.26,0.00024657,2]
[358205332,1744836638787,-219.83389466,0.00024657,2]